[Event "CZE-ch Youth B14 2022"]
[Site "Luhacovice"]
[Date "2022.03.13"]
[Round "2.9"]
[White "Zelba, Lukas"]
[Black "Juhanak, Daniel"]
[Result "1-0"]
[ECO "D04"]
[WhiteElo "1945"]
[BlackElo "1688"]
[Annotator "NA"]
[PlyCount "120"]
[EventDate "2022.03.12"]
[EventType "swiss"]
[EventCountry "CZE"]
[SourceTitle "playchess.com"]
[Source "ChessBase"]
[SourceQuality "1"]
[TimeControl "40/5400+30:1800+30"]

1. d4 {[%emt 0:00:46]} d5 {[%emt 0:01:17]} 2. Nf3 {[%emt 0:00:10]} Nf6 {[%emt 0:00:45]} 3. e3 {[%emt 0:00:38]} c5 {[%emt 0:00:50]} 4. b3 {[%emt 0:01:04]} cxd4 {[%emt 0:01:14]} 5. Nxd4 {[%emt 0:00:31]} e5 {[%emt 0:04:04]} 6. Nf3 {[%emt 0:00:38]} Nc6 {[%emt 0:01:26]} 7. Bb2 {[%emt 0:02:21]} Bd6 {[%emt 0:03:17]} 8. Nbd2 {[%emt 0:01:42]} O-O {[%emt 0:02:29]} 9. Bb5 {[%emt 0:04:27]} Qc7 {[%emt 0:05:45]} 10. h3 {[%emt 0:03:14]} h6 $15 {[%emt 0:07:19]} (10... a6 $17 11. Bxc6 bxc6) 11. O-O {[%emt 0:09:52]} Bf5 {[%emt 0:02:56]} 12. a3 {[%emt 0:01:57]} Rfd8 {[%emt 0:13:49]} 13. Rc1 {[%emt 0:02:55]} Qe7 {[%emt 0:10:08]} 14. b4 {[%emt 0:08:13]} a6 {[%emt 0:02:49]} 15. Bxc6 {[%emt 0:03:00]} bxc6 {[%emt 0:00:51]} 16. Nb3 {[%emt 0:01:34]} Bc7 {[%emt 0:08:27]} 17. Re1 {[%emt 0:02:41]} Nd7 {[%emt 0:04:49]} 18. Qe2 {[%emt 0:02:41]} a5 {[%emt 0:07:59]} 19. bxa5 {[%emt 0:04:08]} c5 {[%emt 0:08:33]} 20. c4 {[%emt 0:18:06]} e4 21. Nfd2 {[%emt 0:03:56]} Ne5 {[%emt 0:08:06]} 22. Bxe5 {[%emt 0:01:22]} Qxe5 {[%emt 0:00:47]} 23. f4 {[%emt 0:01:04]} Qb2 {[%emt 0:02:21]} 24. Rb1 {[%emt 0:08:19]} Qxa3 {[%emt 0:01:18]} 25. Ra1 {[%emt 0:00:26]} Qb4 {[%emt 0:00:38]} 26. Reb1 {[%emt 0:00:29]} dxc4 {[%emt 0:00:37]} 27. Nd4 {[%emt 0:01:32]} Qc3 {[%emt 0:00:33]} 28. Rc1 {[%emt 0:01:22]} Qb2 {[%emt 0:00:42]} 29. Rab1 {[%emt 0:01:02]} Qa2 {[%emt 0:00:36]} 30. Rc2 {[%emt 0:00:44]} Qa4 {[%emt 0:00:26]} 31. Rxc4 Qa2 {[%emt 0:00:31]} 32. Rxc5 {[%emt 0:04:44]} Bxa5 {[%emt 0:00:31]} 33. Rc2 {[%emt 0:00:57]} Qa4 {[%emt 0:00:22]} 34. Nc4 {[%emt 0:02:39]} Be6 {[%emt 0:00:36]} 35. Nxe6 {[%emt 0:00:47]} fxe6 {[%emt 0:00:32]} 36. Ra2 {[%emt 0:00:27]} Qd7 {[%emt 0:00:31]} 37. Rxa5 {[%emt 0:01:02]} Rxa5 {[%emt 0:00:32]} 38. Nxa5 {[%emt 0:00:07]} Qa4 {[%emt 0:00:28]} 39. Nc4 {[%emt 0:01:48]} Qa6 {[%emt 0:00:30]} 40. Kf2 {[%emt 0:00:46]} Rd3 {[%emt 0:00:25]} 41. Ne5 {[%emt 0:30:33]} Ra3 {[%emt 0:01:23]} 42. Qxa6 {[%emt 0:00:00]} Rxa6 {[%emt 0:01:57]} 43. Rb4 {[%emt 0:00:00]} Kf8 {[%emt 0:00:40]} 44. Rxe4 {[%emt 0:00:00]} Ke7 {[%emt 0:00:41]} 45. Nd3 {[%emt 0:00:00]} Kf6 {[%emt 0:00:23]} 46. Kf3 {[%emt 0:00:00]} g5 {[%emt 0:01:11]} 47. Nc5 {[%emt 0:00:00]} Rc6 {[%emt 0:00:24]} 48. Rxe6+ {[%emt 0:00:00]} Rxe6 {[%emt 0:00:10]} 49. Nxe6 {[%emt 0:00:00]} Kxe6 {[%emt 0:00:01]} 50. fxg5 {[%emt 0:00:00]} hxg5 {[%emt 0:00:10]} 51. Kg4 {[%emt 0:00:00]} Kf6 {[%emt 0:00:14]} 52. e4 {[%emt 0:00:00]} Ke5 {[%emt 0:00:39]} 53. Kxg5 {[%emt 0:00:00]} Kxe4 {[%emt 0:00:10]} 54. h4 {[%emt 0:00:00]} Ke5 {[%emt 0:00:14]} 55. h5 {[%emt 0:00:00]} Ke6 {[%emt 0:00:11]} 56. Kg6 {[%emt 0:00:00]} Ke7 {[%emt 0:00:16]} 57. Kg7 {[%emt 0:00:00]} Ke6 {[%emt 0:00:11]} 58. h6 {[%emt 0:00:00]} Ke5 {[%emt 0:00:21]} 59. h7 {[%emt 0:00:00]} Ke4 {[%emt 0:00:08]} 60. h8=Q {[%emt 0:00:00]} Kd5 {[%emt 0:00:08]} 1-0

[Event "CZE-ch Youth B14 2022"]
[Site "Luhacovice"]
[Date "2022.03.13"]
[Round "2.10"]
[White "Svoboda, Daniel"]
[Black "Juracak, David"]
[Result "1/2-1/2"]
[ECO "C42"]
[WhiteElo "1619"]
[BlackElo "1717"]
[Annotator "NA"]
[PlyCount "84"]
[EventDate "2022.03.12"]
[EventType "swiss"]
[EventCountry "CZE"]
[SourceTitle "playchess.com"]
[Source "ChessBase"]
[SourceQuality "1"]
[TimeControl "40/5400+30:1800+30"]

1. e4 {[%emt 0:00:08]} e5 {[%emt 0:00:07]} 2. Nf3 {[%emt 0:00:09]} Nf6 {[%emt 0:00:05]} 3. Nxe5 {[%emt 0:00:21]} d6 {[%emt 0:00:07]} 4. Nf3 {[%emt 0:00:12]} Nxe4 {[%emt 0:00:07]} 5. Nc3 {[%emt 0:00:07]} Nxc3 {[%emt 0:00:05]} 6. dxc3 {[%emt 0:00:05]} Be7 {[%emt 0:00:41]} 7. Be3 {[%emt 0:01:15]} Nc6 {[%emt 0:00:08]} 8. Qd2 {[%emt 0:00:22]} Be6 {[%emt 0:00:08]} 9. O-O-O {[%emt 0:00:15]} Qd7 {[%emt 0:04:07]} 10. Kb1 {[%emt 0:01:14]} a6 {[%emt 0:01:18]} 11. Nd4 {[%emt 0:13:53]} Nxd4 {[%emt 0:08:26]} 12. cxd4 {[%emt 0:00:17]} d5 {[%emt 0:02:37]} 13. h3 {[%emt 0:03:58]} O-O-O {[%emt 0:00:15]} 14. Qa5 {[%emt 0:06:50]} Qc6 {[%emt 0:04:37]} 15. Bd3 {[%emt 0:07:36]} Rd6 {[%emt 0:03:15]} 16. Bf4 {[%emt 0:05:51]} Qb6 {[%emt 0:00:22]} 17. Qxb6 {[%emt 0:03:43]} Rxb6 {[%emt 0:00:03]} 18. c3 {[%emt 0:07:48]} Kd7 {[%emt 0:06:48]} 19. g4 {[%emt 0:04:16]} Bd6 {[%emt 0:02:25]} 20. Be3 {[%emt 0:04:55]} f6 {[%emt 0:20:07]} 21. f4 {[%emt 0:07:03]} Be7 {[%emt 0:04:45]} 22. Bc2 {[%emt 0:02:22]} Rd6 {[%emt 0:08:49]} 23. Rde1 {[%emt 0:04:58]} Kd8 {[%emt 0:05:01]} 24. Re2 {[%emt 0:02:56]} Bf7 {[%emt 0:02:01]} 25. Rhe1 {[%emt 0:03:02]} Bg6 {[%emt 0:02:09]} 26. f5 {[%emt 0:02:53]} Bf7 {[%emt 0:00:11]} 27. b3 {[%emt 0:04:45]} Re8 {[%emt 0:00:39]} 28. Bc1 {[%emt 0:00:24]} Rd7 {[%emt 0:02:18]} 29. b4 {[%emt 0:05:36]} Bd6 {[%emt 0:01:25]} 30. a4 {[%emt 0:01:46]} Rde7 {[%emt 0:01:05]} 31. Rxe7 {[%emt 0:00:40]} Rxe7 {[%emt 0:00:05]} 32. Rxe7 {[%emt 0:00:07]} Bxe7 {[%emt 0:00:06]} 33. Bf4 {[%emt 0:00:56]} Kd7 {[%emt 0:01:19]} 34. Kc1 {[%emt 0:00:58]} Bd6 {[%emt 0:02:46]} 35. Bxd6 {[%emt 0:00:52]} Kxd6 {[%emt 0:00:06]} 36. Kb2 {[%emt 0:02:04]} Be8 {[%emt 0:00:17]} 37. Ka3 {[%emt 0:00:17]} Bc6 {[%emt 0:06:54]} 38. Bd3 {[%emt 0:01:22]} Ke7 {[%emt 0:01:31]} 39. b5 {[%emt 0:01:37]} axb5 {[%emt 0:00:13]} 40. axb5 {[%emt 0:00:06]} Bd7 {[%emt 0:00:12]} 41. Kb4 {[%emt 0:30:39]} Kd6 {[%emt 0:30:20]} 42. Bc2 {[%emt 0:00:00]} h6 {[%emt 0:00:00]} 1/2-1/2

[Event "CZE-ch Youth B14 2022"]
[Site "Luhacovice"]
[Date "2022.03.13"]
[Round "2.11"]
[White "Veverka, Vladimir"]
[Black "Mrazek, Adam"]
[Result "1/2-1/2"]
[ECO "E92"]
[WhiteElo "1723"]
[BlackElo "1582"]
[Annotator "NA"]
[PlyCount "73"]
[EventDate "2022.03.12"]
[EventType "swiss"]
[EventCountry "CZE"]
[SourceTitle "playchess.com"]
[Source "ChessBase"]
[SourceQuality "1"]
[TimeControl "40/5400+30:1800+30"]

1. d4 {[%emt 0:00:13]} Nf6 {[%emt 0:00:19]} 2. c4 {[%emt 0:00:39]} g6 {[%emt 0:00:21]} 3. Nc3 {[%emt 0:00:16]} Bg7 {[%emt 0:00:38]} 4. e4 {[%emt 0:00:26]} d6 {[%emt 0:00:45]} 5. Nf3 {[%emt 0:00:42]} O-O {[%emt 0:00:59]} 6. Be2 e5 {[%emt 0:01:16]} 7. dxe5 {[%emt 0:01:33]} dxe5 {[%emt 0:00:15]} 8. Qxd8 {[%emt 0:00:12]} Rxd8 {[%emt 0:00:06]} 9. Bg5 {[%emt 0:00:09]} Re8 {[%emt 0:00:35]} 10. Nd5 {[%emt 0:00:20]} Nxd5 {[%emt 0:01:09]} 11. cxd5 {[%emt 0:01:08]} c6 {[%emt 0:01:24]} 12. Bc4 {[%emt 0:01:16]} cxd5 {[%emt 0:01:18]} 13. Bxd5 {[%emt 0:01:07]} Nd7 {[%emt 0:01:12]} 14. Nd2 {[%emt 0:02:16]} Nb6 {[%emt 0:01:35]} 15. Bb3 {[%emt 0:03:15]} Be6 {[%emt 0:01:28]} 16. Bxe6 {[%emt 0:01:17]} Rxe6 {[%emt 0:00:09]} 17. Rc1 {[%emt 0:02:26]} Rc8 {[%emt 0:02:11]} 18. Rxc8+ {[%emt 0:02:46]} Nxc8 {[%emt 0:00:13]} 19. Nb3 {[%emt 0:01:26]} Rc6 {[%emt 0:25:53]} 20. Kd2 {[%emt 0:07:45]} Nb6 {[%emt 0:05:53]} 21. Na5 {[%emt 0:04:37]} Nc4+ {[%emt 0:04:28]} 22. Nxc4 {[%emt 0:01:53]} Rxc4 {[%emt 0:00:07]} 23. Rc1 {[%emt 0:05:01]} Rxc1 {[%emt 0:10:20]} 24. Kxc1 {[%emt 0:00:15]} f5 {[%emt 0:07:06]} 25. Be3 {[%emt 0:03:09]} b6 {[%emt 0:08:38]} 26. f3 {[%emt 0:01:08]} Kf7 {[%emt 0:00:57]} 27. Kc2 {[%emt 0:00:56]} Ke6 {[%emt 0:02:23]} 28. Kc3 {[%emt 0:02:14]} Kd6 {[%emt 0:01:42]} 29. Kc4 {[%emt 0:00:40]} Kc6 {[%emt 0:01:42]} 30. a4 {[%emt 0:00:36]} a6 {[%emt 0:04:51]} 31. g4 {[%emt 0:07:04]} f4 {[%emt 0:08:04]} 32. Bf2 {[%emt 0:00:34]} g5 {[%emt 0:01:20]} 33. h4 {[%emt 0:00:43]} h6 {[%emt 0:00:15]} 34. hxg5 {[%emt 0:00:25]} hxg5 {[%emt 0:00:05]} 35. b4 {[%emt 0:00:29]} b5+ {[%emt 0:01:26]} 36. axb5+ {[%emt 0:00:54]} axb5+ {[%emt 0:00:31]} 37. Kc3 {[%emt 0:00:16]} 1/2-1/2

[Event "CZE-ch Youth B14 2022"]
[Site "Luhacovice"]
[Date "2022.03.13"]
[Round "2.12"]
[White "Davidek, Zdenek"]
[Black "Dusanek, Michal"]
[Result "0-1"]
[ECO "B31"]
[WhiteElo "1570"]
[BlackElo "1682"]
[Annotator "NA"]
[PlyCount "78"]
[EventDate "2022.03.12"]
[EventType "swiss"]
[EventCountry "CZE"]
[SourceTitle "playchess.com"]
[Source "ChessBase"]
[SourceQuality "1"]
[TimeControl "40/5400+30:1800+30"]

1. e4 c5 2. Nf3 Nc6 3. Bb5 g6 4. Bxc6 bxc6 5. O-O Bg7 6. Re1 Nh6 7. d3 O-O 8. Nc3 d6 9. h3 e5 10. Bg5 f6 11. Bxh6 Bxh6 12. Nh2 Rf7 13. Ng4 Bf8 14. Qd2 Rb8 15. Na4 Bxg4 16. hxg4 f5 17. gxf5 gxf5 18. Re3 f4 19. Rh3 Rg7 20. Qe2 Qg5 21. g3 fxg3 22. Rxg3 Qf4 23. Kg2 Rbb7 24. Re1 Rxg3+ 25. fxg3 Rg7 26. Qf2 Be7 27. Re3 h5 28. Kf1 Qg4 29. Rf3 Qh3+ 30. Qg2 Qe6 31. b3 h4 32. Qh2 h3 33. Kf2 Qh6 34. Kg1 Qh5 35. Kf2 Bg5 36. Nc3 Bh6 37. Ne2 Rf7 38. g4 Qxg4 39. Qxh3 Qxh3 0-1

[Event "CZE-ch Youth B14 2022"]
[Site "Luhacovice"]
[Date "2022.03.14"]
[Round "3.1"]
[White "Prazak, Daniel"]
[Black "Hladky, Tadeas"]
[Result "1/2-1/2"]
[ECO "A11"]
[WhiteElo "2016"]
[BlackElo "2029"]
[Annotator "ChessBase"]
[PlyCount "71"]
[EventDate "2022.03.12"]
[EventType "swiss"]
[EventCountry "CZE"]
[SourceTitle "playchess.com"]
[Source "ChessBase"]
[SourceQuality "1"]
[TimeControl "40/5400+30:1800+30"]

1. c4 {[%emt 0:00:03]} c6 {[%emt 0:00:06]} 2. Nf3 {[%emt 0:00:18]} d5 {[%emt 0:00:10]} 3. g3 {[%emt 0:00:05]} Nf6 {[%emt 0:00:05]} 4. Bg2 {[%emt 0:00:22]} Bf5 {[%emt 0:01:07]} 5. b3 {[%emt 0:01:04]} Nbd7 {[%emt 0:00:29]} 6. Bb2 {[%emt 0:00:05]} e6 {[%emt 0:00:05]} 7. O-O {[%emt 0:00:59]} Bd6 {[%emt 0:00:05]} 8. Nc3 {[%emt 0:00:15]} O-O {[%emt 0:00:18]} 9. d3 {[%emt 0:00:14]} Qe7 {[%emt 0:00:08]} 10. Nh4 {[%emt 0:01:20]} Bg6 {[%emt 0:00:18]} 11. Nxg6 {[%emt 0:00:08]} hxg6 {[%emt 0:00:07]} 12. e3 {[%emt 0:00:25]} Ba3 {[%emt 0:00:07]} 13. Bxa3 {[%emt 0:04:25]} Qxa3 {[%emt 0:00:08]} 14. Qe2 {[%emt 0:00:34]} Rfd8 {[%emt 0:04:29]} 15. d4 {[%emt 0:22:29]} Rac8 {[%emt 0:03:27]} 16. Rac1 {[%emt 0:00:45]} a6 {[%emt 0:00:55]} 17. f4 {[%emt 0:27:39]} Qa5 {[%emt 0:12:53]} 18. c5 {[%emt 0:04:29]} Ne8 {[%emt 0:03:06]} 19. Qd3 {[%emt 0:07:40]} b6 {[%emt 0:12:52]} 20. Na4 {[%emt 0:02:15]} bxc5 {[%emt 0:03:15]} 21. Nxc5 {[%emt 0:01:37]} Nxc5 {[%emt 0:00:11]} 22. Rxc5 {[%emt 0:00:17]} Qxa2 {[%emt 0:00:18]} 23. Qc3 {[%emt 0:05:25]} Nd6 {[%emt 0:07:38]} 24. Ra1 {[%emt 0:06:03]} Qe2 {[%emt 0:02:12]} 25. Re1 {[%emt 0:00:30]} Qg4 {[%emt 0:01:25]} 26. Rxc6 {[%emt 0:00:23]} g5 {[%emt 0:02:55]} 27. Qc5 {[%emt 0:02:46]} Rxc6 {[%emt 0:01:53]} 28. Qxc6 {[%emt 0:00:03]} gxf4 {[%emt 0:07:52]} 29. gxf4 {[%emt 0:00:22]} Rc8 {[%emt 0:01:21]} 30. Qxa6 {[%emt 0:01:51]} Rc2 {[%emt 0:00:10]} 31. Qf1 {[%emt 0:00:08]} Nf5 {[%emt 0:02:10]} 32. Qf3 {[%emt 0:03:35]} Qg6 {[%emt 0:01:31]} 33. Re2 Nh4 {[%emt 0:01:43]} 34. Qf1 {[%emt 0:00:33]} Rxe2 {[%emt 0:03:45]} 35. Qxe2 {[%emt 0:00:05]} Nxg2 {[%emt 0:00:51]} 36. Qxg2 {[%emt 0:00:05]} 1/2-1/2

[Event "CZE-ch Youth B14 2022"]
[Site "Luhacovice"]
[Date "2022.03.14"]
[Round "3.2"]
[White "Fizer, Marek"]
[Black "Brozka, Karel"]
[Result "0-1"]
[ECO "A45"]
[WhiteElo "1876"]
[BlackElo "2125"]
[Annotator "ChessBase"]
[PlyCount "90"]
[EventDate "2022.03.12"]
[EventType "swiss"]
[EventCountry "CZE"]
[SourceTitle "playchess.com"]
[Source "ChessBase"]
[SourceQuality "1"]
[TimeControl "40/5400+30:1800+30"]

1. d4 {[%emt 0:00:03]} Nf6 {[%emt 0:00:20]} 2. Nc3 {[%emt 0:00:05]} d5 {[%emt 0:00:38]} 3. Bf4 {[%emt 0:00:12]} c6 {[%emt 0:02:33]} 4. e3 {[%emt 0:00:13]} Bf5 {[%emt 0:01:56]} 5. Bd3 {[%emt 0:01:14]} Bxd3 {[%emt 0:08:38]} 6. cxd3 {[%emt 0:04:38]} e6 {[%emt 0:02:07]} 7. h3 {[%emt 0:05:10]} Bd6 {[%emt 0:11:23]} 8. Bxd6 {[%emt 0:04:51]} Qxd6 {[%emt 0:00:24]} 9. Nf3 {[%emt 0:01:18]} Nbd7 {[%emt 0:01:16]} 10. e4 {[%emt 0:04:33]} Qb4 {[%emt 0:07:57]} 11. Qd2 {[%emt 0:07:04]} Nb6 {[%emt 0:02:35]} 12. e5 {[%emt 0:05:31]} Nfd7 {[%emt 0:02:03]} 13. O-O {[%emt 0:00:33]} O-O {[%emt 0:04:14]} 14. Nd1 {[%emt 0:08:35]} Qxd2 {[%emt 0:09:23]} 15. Nxd2 {[%emt 0:00:15]} c5 {[%emt 0:10:53]} 16. f4 {[%emt 0:06:32]} Rac8 {[%emt 0:03:15]} 17. dxc5 {[%emt 0:01:48]} Nxc5 {[%emt 0:04:48]} 18. Rf3 {[%emt 0:12:05]} Nca4 {[%emt 0:01:41]} 19. b3 {[%emt 0:05:57]} Rc2 {[%emt 0:02:07]} 20. Nf1 {[%emt 0:03:13]} Nc5 {[%emt 0:02:21]} 21. Rf2 {[%emt 0:00:36]} Rxf2 {[%emt 0:00:58]} 22. Nxf2 {[%emt 0:00:08]} Rc8 {[%emt 0:02:41]} 23. Rc1 {[%emt 0:02:24]} Na6 {[%emt 0:00:59]} 24. Rxc8+ {[%emt 0:00:15]} Nxc8 {[%emt 0:00:01]} 25. Ne3 {[%emt 0:02:57]} Nb4 {[%emt 0:01:15]} 26. a3 {[%emt 0:01:20]} Nc6 {[%emt 0:00:37]} 27. Nc2 {[%emt 0:00:55]} N8e7 {[%emt 0:00:37]} 28. Kf1 {[%emt 0:09:30]} Nf5 {[%emt 0:01:51]} 29. b4 {[%emt 0:02:33]} Ncd4 {[%emt 0:05:51]} 30. Nxd4 {[%emt 0:01:01]} Nxd4 {[%emt 0:00:07]} 31. a4 {[%emt 0:00:56]} Nc2 {[%emt 0:03:36]} 32. b5 {[%emt 0:00:09]} Ne3+ {[%emt 0:00:07]} 33. Kg1 {[%emt 0:00:33]} Kf8 {[%emt 0:00:16]} 34. Ng4 {[%emt 0:01:19]} Nd1 {[%emt 0:01:03]} 35. a5 {[%emt 0:00:34]} Nc3 {[%emt 0:00:11]} 36. b6 {[%emt 0:00:34]} axb6 {[%emt 0:00:56]} 37. axb6 {[%emt 0:00:06]} Ne2+ {[%emt 0:03:38]} 38. Kf2 {[%emt 0:00:49]} Nxf4 {[%emt 0:00:04]} 39. d4 {[%emt 0:00:26]} Ke7 {[%emt 0:01:00]} 40. h4 {[%emt 0:01:08]} h5 {[%emt 0:01:38]} 41. Ne3 {[%emt 0:30:25]} Nd3+ {[%emt 0:31:35]} 42. Ke2 {[%emt 0:00:30]} Nb2 {[%emt 0:00:55]} 43. Kd2 {[%emt 0:00:27]} Na4 {[%emt 0:00:36]} 44. Kc2 {[%emt 0:00:20]} Nxb6 {[%emt 0:00:04]} 45. Kb3 {[%emt 0:00:05]} Nc4 {[%emt 0:00:00]} 0-1

[Event "CZE-ch Youth B14 2022"]
[Site "Luhacovice"]
[Date "2022.03.14"]
[Round "3.3"]
[White "Buchta, Bartolomej"]
[Black "Jasso, Matej"]
[Result "1-0"]
[ECO "B90"]
[WhiteElo "1901"]
[BlackElo "1726"]
[Annotator "ChessBase"]
[PlyCount "69"]
[EventDate "2022.03.12"]
[EventType "swiss"]
[EventCountry "CZE"]
[SourceTitle "playchess.com"]
[Source "ChessBase"]
[SourceQuality "1"]
[TimeControl "40/5400+30:1800+30"]

1. e4 {[%emt 0:00:03]} c5 {[%emt 0:00:05]} 2. Nf3 {[%emt 0:00:04]} d6 {[%emt 0:00:18]} 3. d4 {[%emt 0:00:06]} cxd4 {[%emt 0:00:05]} 4. Nxd4 {[%emt 0:00:05]} Nf6 {[%emt 0:00:08]} 5. Nc3 {[%emt 0:00:05]} a6 {[%emt 0:00:03]} 6. h3 {[%emt 0:00:04]} e6 {[%emt 0:02:03]} 7. g4 {[%emt 0:00:31]} Nc6 {[%emt 0:02:27]} 8. Bg2 {[%emt 0:01:41]} d5 {[%emt 0:10:49]} 9. exd5 {[%emt 0:02:01]} Nxd5 {[%emt 0:00:35]} 10. Nxd5 {[%emt 0:07:23]} exd5 {[%emt 0:00:08]} 11. O-O {[%emt 0:00:14]} Be7 {[%emt 0:01:58]} 12. Be3 {[%emt 0:03:47]} O-O {[%emt 0:02:48]} 13. c3 {[%emt 0:06:21]} Bf6 {[%emt 0:10:29]} 14. Qd2 {[%emt 0:03:00]} Bxd4 {[%emt 0:05:10]} 15. Bxd4 {[%emt 0:00:19]} Qd6 {[%emt 0:00:26]} 16. Rad1 {[%emt 0:01:49]} Be6 {[%emt 0:04:38]} 17. Bxg7 {[%emt 0:07:39]} Kxg7 {[%emt 0:00:36]} 18. Qg5+ {[%emt 0:00:06]} Kh8 {[%emt 0:00:09]} 19. Qf6+ {[%emt 0:00:03]} Kg8 {[%emt 0:00:08]} 20. Rxd5 {[%emt 0:00:20]} Qxd5 {[%emt 0:03:12]} 21. Bxd5 {[%emt 0:00:10]} Bxd5 {[%emt 0:00:09]} 22. Qg5+ {[%emt 0:00:04]} Kh8 {[%emt 0:00:11]} 23. Qxd5 {[%emt 0:00:07]} Rad8 {[%emt 0:00:07]} 24. Qf5 {[%emt 0:02:43]} f6 {[%emt 0:03:07]} 25. Re1 {[%emt 0:02:40]} Ne5 {[%emt 0:00:46]} 26. Kg2 {[%emt 0:10:18]} Kg7 {[%emt 0:01:15]} 27. h4 {[%emt 0:16:59]} Ng6 {[%emt 0:11:52]} 28. Kf1 {[%emt 0:04:04]} Rfe8 {[%emt 0:00:58]} 29. Rxe8 {[%emt 0:01:33]} Rxe8 {[%emt 0:00:14]} 30. h5 {[%emt 0:01:40]} Ne5 {[%emt 0:01:51]} 31. f4 {[%emt 0:04:17]} Nc6 {[%emt 0:00:48]} 32. h6+ {[%emt 0:01:57]} Kg8 {[%emt 0:01:56]} 33. Qxf6 {[%emt 0:00:10]} Re7 {[%emt 0:00:09]} 34. g5 {[%emt 0:02:10]} Rf7 {[%emt 0:01:12]} 35. Qe6 {[%emt 0:00:55]} 1-0

[Event "CZE-ch Youth B14 2022"]
[Site "Luhacovice"]
[Date "2022.03.14"]
[Round "3.4"]
[White "Babula, Matej"]
[Black "Setina, Vaclav"]
[Result "1-0"]
[ECO "B89"]
[WhiteElo "1753"]
[BlackElo "1881"]
[Annotator "NA"]
[PlyCount "91"]
[EventDate "2022.03.12"]
[EventType "swiss"]
[EventCountry "CZE"]
[SourceTitle "playchess.com"]
[Source "ChessBase"]
[SourceQuality "1"]
[TimeControl "40/5400+30:1800+30"]

1. e4 {[%emt 0:00:01]} c5 {[%emt 0:00:00]} 2. Nf3 {[%emt 0:00:06]} d6 {[%emt 0:00:03]} 3. d4 {[%emt 0:00:04]} cxd4 {[%emt 0:00:01]} 4. Nxd4 {[%emt 0:00:06]} Nf6 {[%emt 0:00:18]} 5. Nc3 {[%emt 0:00:03]} Nc6 {[%emt 0:00:16]} 6. Be3 {[%emt 0:21:25]} e6 {[%emt 0:01:10]} 7. Bc4 {[%emt 0:01:45]} (7. Qd2 $14 {is superior.}) 7... Be7 {[%emt 0:00:33] 7...a6 gains popularity.} 8. Bb3 {[%emt 0:00:31]} a6 {[%emt 0:00:30]} 9. g4 {[%emt 0:01:43]} (9. f4 {feels stronger.}) 9... Nxd4 {[%emt 0:04:32]} 10. Qxd4 {[%emt 0:03:36]} e5 {[%emt 0:00:21] [#]} 11. Qd2 $146 {[%emt 0:00:57]} ({Predecessor:} 11. Qd3 Bxg4 12. Rg1 O-O 13. Bg5 Bh5 14. Qh3 Bg6 15. Bxf6 Bxf6 16. O-O-O Rc8 17. Qf3 {0-1 (58) Velimirovic,D (2515)-Popovic,P (2545) Bar 1997}) 11... Nxg4 {[%emt 0:00:16]} 12. Nd5 {[%emt 0:10:46]} Nxe3 {[%emt 0:10:11]} 13. Nxe3 {[%emt 0:00:11]} Be6 {[%emt 0:00:40]} 14. O-O-O {[%emt 0:03:02]} Bxb3 {[%emt 0:07:37]} 15. axb3 {[%emt 0:04:59]} Bg5 {[%emt 0:07:08]} 16. Rhg1 {[%emt 0:13:07]} O-O {[%emt 0:00:17]} 17. Kb1 {[%emt 0:02:50]} Qf6 $2 {[%emt 0:08:41] [#]} (17... Bf4 $15) 18. Nd5 $1 {[%emt 0:03:09]} Bxd2 {[%emt 0:00:20]} 19. Nxf6+ {[%emt 0:00:02]} Kh8 {[%emt 0:00:25]} 20. Nd7 {[%emt 0:01:25]} Bb4 {[%emt 0:01:10]} 21. Nxf8 {[%emt 0:00:05]} Rxf8 {[%emt 0:00:11]} 22. Rgf1 {[%emt 0:07:11]} Bc5 {[%emt 0:02:58]} 23. b4 {[%emt 0:02:16]} Bxb4 {[%emt 0:03:08]} 24. c3 {[%emt 0:00:02]} Ba5 {[%emt 0:03:31]} 25. Rxd6 {[%emt 0:00:07]} Bd8 {[%emt 0:01:14]} 26. Rd7 {[%emt 0:01:23]} b6 {[%emt 0:01:26]} 27. Rfd1 {[%emt 0:00:45]} Bh4 {[%emt 0:02:58]} 28. R1d6 {[%emt 0:00:56]} Bxf2 {[%emt 0:01:36]} 29. Rxf7 {[%emt 0:00:21]} Kg8 {[%emt 0:00:40]} 30. Rxf8+ {[%emt 0:00:56]} Kxf8 {[%emt 0:00:02]} 31. Re6 {[%emt 0:01:13]} a5 {[%emt 0:01:35]} 32. Rxe5 {[%emt 0:00:21]} Bg1 {[%emt 0:02:04]} 33. h3 {[%emt 0:00:36]} Kf7 {[%emt 0:03:46]} 34. Kc2 {[%emt 0:00:29]} h6 {[%emt 0:04:09]} 35. Kd3 {[%emt 0:00:34]} g5 $18 {[%emt 0:01:39]} 36. Ke2 {[%emt 0:01:22]} a4 {[%emt 0:08:54]} 37. Rd5 {[%emt 0:02:36]} Kf6 {[%emt 0:08:35]} 38. Rd8 {[%emt 0:00:24]} h5 {[%emt 0:01:59]} 39. Kf3 {[%emt 0:00:34]} Bh2 {[%emt 0:01:38]} 40. Ra8 {[%emt 0:01:23]} Bd6 {[%emt 0:02:54]} 41. Rxa4 {[%emt 0:30:45]} g4+ {[%emt 0:33:28]} 42. hxg4 {[%emt 0:00:12]} h4 {[%emt 0:00:43]} 43. Kg2 {[%emt 0:01:05]} Kg5 {[%emt 0:00:32]} 44. Kh3 {[%emt 0:00:19]} Bg3 {[%emt 0:00:36]} 45. Rb4 {[%emt 0:01:21]} Bf2 {[%emt 0:00:09]} 46. e5 {[%emt 0:00:25]} 1-0